lending/lending_fUSD_20241007
["ID","MTS","AMOUNT","RATE_DAILY","PERIOD"]
[339995718,1728295855800,-4042.41,0.000375,14]
[339995719,1728295855810,-696.1411367,0.00037508,2]
[339995720,1728295855819,-684.6893235,0.00037508,2]
[339995721,1728295855828,-550.950347,0.00037508,2]
[339995722,1728295855838,-201.0,0.0003753,2]
[339995723,1728295855847,-329.0,0.0003753,2]
[339995724,1728295855857,-506.3192842,0.00037533,2]
[339995725,1728295855866,-213.10272502,0.00037534,2]
[339995726,1728295855876,-803.20571201,0.00037534,5]
[339995727,1728295855885,-500.0,0.00037534,2]
[339995728,1728295855895,-500.0,0.00037534,2]
[339995729,1728295855905,-500.0,0.00037534,2]
[339995730,1728295855914,-227.659548,0.00037534,7]
[339995731,1728295855923,-500.0,0.00037534,2]
[339995732,1728295855932,-633.41,0.00037534,2]
[339995733,1728295855942,-500.0,0.00037534,2]
[339995734,1728295855951,-879.25,0.00037534,2]
[339995735,1728295855961,-500.0,0.00037534,2]
[339995736,1728295855970,-578.48,0.00037534,2]
[339995737,1728295855979,-500.0,0.00037534,2]
[339995738,1728295855989,-622.1,0.00037534,2]
[339995739,1728295855998,-832.07,0.00037534,2]
[339995740,1728295856007,-500.0,0.00037534,2]
[339995741,1728295856017,-500.0,0.00037534,2]
[339995742,1728295856026,-500.0,0.00037534,2]
[339995743,1728295856036,-500.0,0.00037534,2]
[339995744,1728295856045,-562.64,0.00037534,2]
[339995745,1728295856055,-767.12,0.00037534,2]
[339995746,1728295856064,-1284.48,0.00037534,2]
[339995747,1728295856074,-500.0,0.00037534,2]
[339995748,1728295856083,-500.0,0.00037534,2]
[339995749,1728295856094,-500.0,0.00037534,2]
[339995750,1728295856106,-500.0,0.00037534,2]
[339995751,1728295856116,-500.0,0.00037534,2]
[339995752,1728295856126,-1116.95,0.00037534,2]
[339995753,1728295856136,-500.0,0.00037534,2]
[339995754,1728295856146,-500.0,0.00037534,2]
[339995755,1728295856156,-764.7,0.00037534,2]
[339995756,1728295856165,-500.0,0.00037534,2]
[339995757,1728295856175,-775.76,0.00037534,2]
[339995758,1728295856184,-500.0,0.00037534,2]
[339995759,1728295856194,-500.0,0.00037534,2]
[339995760,1728295856203,-2242.98,0.00037534,2]
[339995761,1728295856212,-500.0,0.00037534,2]
[339995762,1728295856221,-500.0,0.00037534,2]
[339995763,1728295856231,-500.0,0.00037534,2]
[339995764,1728295856240,-500.0,0.00037534,2]
[339995765,1728295856249,-578.66,0.00037534,2]
[339995766,1728295856258,-317.38,0.00037534,2]
[339995767,1728295856267,-500.0,0.00037534,2]
[339995768,1728295856276,-500.0,0.00037534,2]
[339995769,1728295856285,-500.0,0.00037534,2]
[339995770,1728295856295,-560.68,0.00037534,2]
[339995771,1728295856304,-500.0,0.00037534,2]
[339995772,1728295856313,-500.0,0.00037534,2]
[339995773,1728295856322,-500.0,0.00037534,2]
[339995774,1728295856331,-500.0,0.00037534,2]
[339995775,1728295856342,-500.0,0.00037534,2]
[339995776,1728295856355,-850.87,0.00037534,2]
[339995777,1728295856364,-500.0,0.00037534,2]
[339995778,1728295856373,-560.68,0.00037534,2]
[339995779,1728295856382,-500.0,0.00037534,2]
[339995780,1728295856392,-500.0,0.00037534,2]
[339995781,1728295856401,-500.0,0.00037534,2]
[339995782,1728295856411,-500.0,0.00037534,2]
[339995783,1728295856420,-500.0,0.00037534,2]
[339995784,1728295856429,-500.0,0.00037534,2]
[339995785,1728295856439,-500.0,0.00037534,2]
[339995786,1728295856448,-558.62,0.00037534,2]
[339995787,1728295856459,-500.0,0.00037534,2]
[339995788,1728295856468,-500.0,0.00037534,2]
[339995789,1728295856478,-500.0,0.00037534,2]
[339995790,1728295856487,-500.0,0.00037534,2]
[339995791,1728295856497,-500.0,0.00037534,2]
[339995792,1728295856506,-589.58,0.00037534,2]
[339995793,1728295856515,-660.06,0.00037534,2]
[339995794,1728295856524,-150.0,0.00037534,7]
[339995795,1728295856533,-500.0,0.00037534,2]
[339995796,1728295856542,-500.0,0.00037534,2]
[339995797,1728295856552,-500.0,0.00037534,2]
[339995798,1728295856561,-500.0,0.00037534,2]
[339995799,1728295856571,-150.0,0.00037534,7]
[339995800,1728295856581,-500.0,0.00037534,2]
[339995801,1728295856594,-500.0,0.00037534,2]
[339995802,1728295856603,-500.0,0.00037534,2]
[339995803,1728295856613,-557.87,0.00037534,2]
[339995804,1728295856622,-150.0,0.00037534,7]
[339995805,1728295856631,-504.02,0.00037534,2]
[339995806,1728295856640,-150.0,0.00037534,7]
[339995807,1728295856650,-204.27899815,0.00037534,7]
[339995808,1728295856659,-500.0,0.00037534,2]
[339995809,1728295856669,-500.0,0.00037534,2]
[339995810,1728295856678,-500.0,0.00037534,2]
[339995811,1728295856687,-500.0,0.00037534,2]
[339995812,1728295856697,-587.38,0.00037534,2]
[339995813,1728295856706,-500.0,0.00037534,2]
[339995814,1728295856716,-500.0,0.00037534,2]
[339995815,1728295856725,-500.0,0.00037534,2]
[339995816,1728295856734,-500.0,0.00037534,2]
[339995817,1728295856744,-711.71,0.00037534,2]
[339995818,1728295856753,-646.3,0.00037534,2]
[339995819,1728295856762,-500.0,0.00037534,2]
[339995820,1728295856772,-511.23,0.00037534,2]
[339995821,1728295856781,-500.0,0.00037534,2]
[339995822,1728295856790,-500.0,0.00037534,2]
[339995823,1728295856799,-619.93,0.00037534,2]
[339995824,1728295856809,-500.0,0.00037534,2]
[339995825,1728295856818,-500.0,0.00037534,2]
[339995826,1728295856827,-500.0,0.00037534,2]
[339995827,1728295856837,-500.0,0.00037534,2]
[339995828,1728295856847,-530.54,0.00037534,2]
[339995829,1728295856857,-500.0,0.00037534,2]
[339995830,1728295856866,-500.0,0.00037534,2]
[339995831,1728295856875,-669.98,0.00037534,2]
[339995832,1728295856885,-500.0,0.00037534,2]
[339995833,1728295856894,-500.0,0.00037534,2]
[339995834,1728295856904,-1921.901947,0.00037534,7]
[339995835,1728295856914,-618.29,0.00037534,2]
[339995836,1728295856923,-1921.90194,0.00037534,7]
[339995837,1728295856933,-526.83,0.00037534,2]
[339995838,1728295856942,-560.05,0.00037534,2]
[339995839,1728295856951,-500.0,0.00037534,2]
[339995840,1728295856961,-530.63,0.00037534,2]
[339995841,1728295856970,-736.68,0.00037534,2]
[339995842,1728295856979,-500.0,0.00037534,2]
[339995843,1728295856988,-524.29,0.00037534,2]
[339995844,1728295856997,-500.0,0.00037534,2]
[339995845,1728295857006,-500.0,0.00037534,2]
[339995846,1728295857015,-500.0,0.00037534,2]
[339995847,1728295857024,-500.0,0.00037534,2]
[339995848,1728295857033,-500.0,0.00037534,2]
[339995849,1728295857042,-636.06,0.00037534,2]
[339995850,1728295857051,-889.03,0.00037534,2]
[339995851,1728295857060,-500.0,0.00037534,2]
[339995852,1728295857068,-600.6,0.00037534,2]
[339995853,1728295857078,-538.91406646,0.00037534,2]
[339995854,1728295857087,-500.0,0.00037534,2]
[339995855,1728295857097,-810.09,0.00037534,2]
[339995856,1728295857110,-1346.29,0.00037534,2]
[339995857,1728295857119,-545.72,0.00037534,2]
[339995858,1728295857129,-654.7,0.00037534,2]
[339995859,1728295857138,-500.0,0.00037534,2]
[339995860,1728295857149,-500.0,0.00037534,2]
[339995861,1728295857158,-500.0,0.00037534,2]
[339995862,1728295857167,-556.24,0.00037534,2]
[339995863,1728295857178,-500.0,0.00037534,2]
[339995864,1728295857187,-500.0,0.00037534,2]
[339995865,1728295857196,-568.77,0.00037534,2]
[339995866,1728295857205,-605.87,0.00037534,2]
[339995867,1728295857215,-954.06,0.00037534,7]
[339995868,1728295857224,-433.2,0.00037534,2]
[339995869,1728295857233,-220.17020821,0.00037537,2]
[339995870,1728295857242,-150.0,0.00037757,7]
[339995871,1728295857251,-6451.4332769,0.00037782,2]
[339995872,1728295857260,-500.0,0.00037808,2]
[339995873,1728295857341,-500.0,0.00037808,2]
[339995874,1728295857350,-500.0,0.00037808,2]
[339995875,1728295857360,-500.0,0.00037808,2]
[339995876,1728295857369,-500.0,0.00037808,2]
[339995877,1728295857378,-879.25,0.00037808,2]
[339995878,1728295857387,-227.1,0.00037808,2]
[339995879,1728295857396,-500.0,0.00037808,2]
[339995880,1728295857406,-832.07,0.00037808,2]
[339995881,1728295857415,-500.0,0.00037808,2]
[339995882,1728295857424,-330.87,0.00037808,2]
[339995883,1728295857432,-500.0,0.00037808,2]
[339995884,1728295857442,-500.0,0.00037808,2]
[339995885,1728295857451,-767.12,0.00037808,2]
[339995886,1728295857460,-1284.48,0.00037808,2]
[339995887,1728295857469,-500.0,0.00037808,2]
[339995888,1728295857478,-500.0,0.00037808,2]
[339995889,1728295857488,-500.0,0.00037808,2]
[339995890,1728295857497,-500.0,0.00037808,2]
[339995891,1728295857507,-496.5,0.00037808,2]
[339995892,1728295857516,-1116.95,0.00037808,2]
[339995893,1728295857525,-385.92,0.00037808,2]
[339995894,1728295857535,-500.0,0.00037808,2]
[339995895,1728295857545,-764.7,0.00037808,2]
[339995896,1728295857554,-419.4,0.00037808,2]
[339995897,1728295857564,-775.76,0.00037808,2]
[339995898,1728295857573,-500.0,0.00037808,2]
[339995899,1728295857582,-500.0,0.00037808,2]
[339995900,1728295857592,-2242.98,0.00037808,2]
[339995901,1728295857601,-544.38,0.00037808,2]
[339995902,1728295857611,-500.0,0.00037808,2]
[339995903,1728295857621,-500.0,0.00037808,2]
[339995904,1728295857630,-500.0,0.00037808,2]
[339995905,1728295857640,-578.66,0.00037808,2]
[339995906,1728295857649,-317.38,0.00037808,2]
[339995907,1728295857659,-500.0,0.00037808,2]
[339995908,1728295857668,-500.0,0.00037808,2]
[339995909,1728295857678,-448.08,0.00037808,2]
[339995910,1728295857687,-560.68,0.00037808,2]
[339995911,1728295857697,-500.0,0.00037808,2]
[339995912,1728295857706,-500.0,0.00037808,2]
[339995913,1728295857715,-500.0,0.00037808,2]
[339995914,1728295857725,-500.0,0.00037808,2]
[339995915,1728295857735,-260.31,0.00037808,2]
[339995916,1728295857745,-850.87,0.00037808,2]
[339995917,1728295857755,-384.66,0.00037808,2]
[339995918,1728295857764,-560.68,0.00037808,2]
[339995919,1728295857773,-500.0,0.00037808,2]
[339995920,1728295857783,-500.0,0.00037808,2]
[339995921,1728295857792,-500.0,0.00037808,2]
[339995922,1728295857801,-225.33,0.00037808,2]
[339995923,1728295857811,-150.81,0.00037808,2]
[339995924,1728295857820,-275.22,0.00037808,2]
[339995925,1728295857830,-500.0,0.00037808,2]
[339995926,1728295857841,-500.0,0.00037808,2]
[339995927,1728295857850,-500.0,0.00037808,2]
[339995928,1728295857860,-500.0,0.00037808,2]
[339995929,1728295857869,-500.0,0.00037808,2]
[339995930,1728295857878,-500.0,0.00037808,2]
[339995931,1728295857887,-589.58,0.00037808,2]
[339995932,1728295857897,-660.06,0.00037808,2]
[339995933,1728295857906,-549.6,0.00037808,2]
[339995934,1728295857915,-575.79,0.00037808,2]
[339995935,1728295857924,-500.0,0.00037808,2]
[339995936,1728295857934,-607.77,0.00037808,2]
[339995937,1728295857943,-500.0,0.00037808,2]
[339995938,1728295857952,-615.03,0.00037808,2]
[339995939,1728295857963,-500.0,0.00037808,2]
[339995940,1728295857972,-504.02,0.00037808,2]
[339995941,1728295857981,-500.0,0.00037808,2]
[339995942,1728295857990,-500.0,0.00037808,2]
[339995943,1728295858000,-224.43,0.00037808,2]
[339995944,1728295858009,-500.0,0.00037808,2]
[339995945,1728295858018,-587.38,0.00037808,2]
[339995946,1728295858028,-417.96,0.00037808,2]
[339995947,1728295858037,-626.61,0.00037808,2]
[339995948,1728295858046,-444.84,0.00037808,2]
[339995949,1728295858056,-500.0,0.00037808,2]
[339995950,1728295858065,-711.71,0.00037808,2]
[339995951,1728295858074,-646.3,0.00037808,2]
[339995952,1728295858084,-500.0,0.00037808,2]
[339995953,1728295858094,-511.23,0.00037808,2]
[339995954,1728295858106,-500.0,0.00037808,2]
[339995955,1728295858115,-500.0,0.00037808,2]
[339995956,1728295858125,-619.93,0.00037808,2]
[339995957,1728295858134,-515.07,0.00037808,2]
[339995958,1728295858143,-500.0,0.00037808,2]
[339995959,1728295858152,-500.0,0.00037808,2]
[339995960,1728295858162,-500.0,0.00037808,2]
[339995961,1728295858172,-530.54,0.00037808,2]
[339995962,1728295858182,-500.0,0.00037808,2]
[339995963,1728295858192,-500.0,0.00037808,2]
[339995964,1728295858201,-669.98,0.00037808,2]
[339995965,1728295858210,-315.24,0.00037808,2]
[339995966,1728295858219,-500.0,0.00037808,2]
[339995967,1728295858229,-618.29,0.00037808,2]
[339995968,1728295858238,-526.83,0.00037808,2]
[339995969,1728295858247,-560.05,0.00037808,2]
[339995970,1728295858256,-500.0,0.00037808,2]
[339995971,1728295858265,-530.63,0.00037808,2]
[339995972,1728295858276,-736.68,0.00037808,2]
[339995973,1728295858285,-546.6,0.00037808,2]
[339995974,1728295858294,-524.29,0.00037808,2]
[339995975,1728295858302,-482.51999999,0.00037808,2]
[339995976,1728295858312,-500.0,0.00037808,2]
[339995977,1728295858322,-500.0,0.00037808,2]
[339995978,1728295858331,-500.0,0.00037808,2]
[339995979,1728295858339,-500.0,0.00037808,2]
[339995980,1728295858349,-636.06,0.00037808,2]
[339995981,1728295858358,-889.03,0.00037808,2]
[339995982,1728295858367,-500.0,0.00037808,2]
[339995983,1728295858376,-600.6,0.00037808,2]
[339995984,1728295858385,-500.0,0.00037808,2]
[339995985,1728295858395,-810.09,0.00037808,2]
[339995986,1728295858404,-1346.29,0.00037808,2]
[339995987,1728295858413,-654.7,0.00037808,2]
[339995988,1728295858423,-500.0,0.00037808,2]
[339995989,1728295858432,-256.62,0.00037808,2]
[339995990,1728295858441,-500.0,0.00037808,2]
[339995991,1728295858450,-556.24,0.00037808,2]
[339995992,1728295858459,-500.0,0.00037808,2]
[339995993,1728295858468,-174.54,0.00037808,2]
[339995994,1728295858478,-568.77,0.00037808,2]
[339995995,1728295858487,-605.87,0.00037808,2]
[339995996,1728295858496,-954.06,0.00037808,7]
[339995997,1728295858505,-3500.0,0.000379,2]
[339995998,1728295858514,-696.1411367,0.00037974,2]
[339995999,1728295858523,-150.0,0.00037979,7]
[339996000,1728295858532,-150.0,0.00037993,7]
[339996001,1728295858541,-368.76908784,0.00037998,2]
[339996002,1728295858550,-50000.0,0.00038,28]
[339996003,1728295858559,-50000.0,0.00038,38]
[339996004,1728295858569,-9500.0,0.00038,2]
[339996005,1728295858578,-1000.0,0.00038,2]
[339996006,1728295858587,-900.0,0.00038,39]
[339996007,1728295858598,-250.0,0.00038,120]
[339996008,1728295858607,-1800.0,0.00038,39]
[339996009,1728295858617,-684.6893235,0.00038056,2]
[339996010,1728295858626,-550.950347,0.00038056,2]
[339996011,1728295858635,-4990.6670967,0.00038056,2]
[339996012,1728295858645,-500.0,0.00038082,120]
[339996013,1728295858654,-535.88183827,0.00038082,120]
[339996014,1728295858663,-295.75,0.00038082,120]
[339996015,1728295858738,-500.0,0.00038082,120]
[339996016,1728295858748,-500.0,0.00038082,120]
[339996017,1728295858757,-879.25,0.00038082,120]
[339996018,1728295858766,-380.92,0.00038082,120]
[339996019,1728295858775,-832.07,0.00038082,120]
[339996020,1728295858785,-356.74,0.00038082,120]
[339996021,1728295858794,-307.15,0.00038082,120]
[339996022,1728295858803,-500.0,0.00038082,120]
[339996023,1728295858812,-767.12,0.00038082,120]
[339996024,1728295858822,-1284.48,0.00038082,14]
[339996025,1728295858831,-566.35,0.00038082,120]
[339996026,1728295858841,-500.0,0.00038082,120]
[339996027,1728295858851,-500.0,0.00038082,120]
[339996028,1728295858860,-500.0,0.00038082,120]
[339996029,1728295858869,-1116.95,0.00038082,120]
[339996030,1728295858879,-500.0,0.00038082,120]
[339996031,1728295858888,-764.7,0.00038082,120]
[339996032,1728295858897,-775.76,0.00038082,30]
[339996033,1728295858907,-252.07,0.00038082,120]
[339996034,1728295858915,-235.24,0.00038082,120]
[339996035,1728295858924,-2242.98,0.00038082,120]
[339996036,1728295858934,-500.0,0.00038082,120]
[339996037,1728295858942,-500.0,0.00038082,120]
[339996038,1728295858951,-394.54,0.00038082,120]
[339996039,1728295858960,-578.66,0.00038082,120]
[339996040,1728295858969,-317.38,0.00038082,120]
[339996041,1728295858978,-500.0,0.00038082,120]
[339996042,1728295858987,-574.19132186,0.00038082,120]
[339996043,1728295858996,-560.68,0.00038082,120]
[339996044,1728295859005,-338.83,0.00038082,120]
[339996045,1728295859014,-500.0,0.00038082,120]
[339996046,1728295859023,-588.97,0.00038082,120]
[339996047,1728295859032,-500.0,0.00038082,120]
[339996048,1728295859042,-850.87,0.00038082,120]
[339996049,1728295859051,-560.68,0.00038082,120]
[339996050,1728295859060,-344.56,0.00038082,120]
[339996051,1728295859070,-500.0,0.00038082,120]
[339996052,1728295859079,-500.0,0.00038082,120]
[339996053,1728295859112,-500.0,0.00038082,120]
[339996054,1728295859122,-500.0,0.00038082,120]
[339996055,1728295859131,-500.0,0.00038082,120]
[339996056,1728295859141,-500.0,0.00038082,120]
[339996057,1728295859151,-500.0,0.00038082,120]
[339996058,1728295859160,-500.0,0.00038082,120]
[339996059,1728295859169,-589.58,0.00038082,120]
[339996060,1728295859179,-660.06,0.00038082,120]
[339996061,1728295859189,-609.82,0.00038082,120]
[339996062,1728295859198,-500.0,0.00038082,120]
[339996063,1728295859207,-500.0,0.00038082,120]
[339996064,1728295859216,-504.02,0.00038082,120]
[339996065,1728295859225,-252.46,0.00038082,120]
[339996066,1728295859235,-500.0,0.00038082,120]
[339996067,1728295859245,-551.08,0.00038082,120]
[339996068,1728295859254,-587.38,0.00038082,120]
[339996069,1728295859263,-500.0,0.00038082,120]
[339996070,1728295859273,-711.71,0.00038082,120]
[339996071,1728295859282,-646.3,0.00038082,120]
[339996072,1728295859292,-500.0,0.00038082,21]
[339996073,1728295859301,-511.23,0.00038082,120]
[339996074,1728295859310,-500.0,0.00038082,120]
[339996075,1728295859319,-500.0,0.00038082,120]
[339996076,1728295859328,-619.93,0.00038082,120]
[339996077,1728295859338,-500.0,0.00038082,120]
[339996078,1728295859348,-476.35,0.00038082,120]
[339996079,1728295859358,-609.37,0.00038082,120]
[339996080,1728295859367,-530.54,0.00038082,120]
[339996081,1728295859377,-500.0,0.00038082,120]
[339996082,1728295859386,-500.0,0.00038082,120]
[339996083,1728295859395,-669.98,0.00038082,120]
[339996084,1728295859404,-436.66,0.00038082,120]
[339996085,1728295859413,-618.29,0.00038082,120]
[339996086,1728295859423,-526.83,0.00038082,120]
[339996087,1728295859431,-560.05,0.00038082,120]
[339996088,1728295859440,-500.0,0.00038082,120]
[339996089,1728295859449,-530.63,0.00038082,120]
[339996090,1728295859458,-736.68,0.00038082,120]
[339996091,1728295859467,-524.29,0.00038082,120]
[339996092,1728295859476,-500.0,0.00038082,120]
[339996093,1728295859485,-500.0,0.00038082,120]
[339996094,1728295859494,-510.1,0.00038082,120]
[339996095,1728295859502,-500.0,0.00038082,120]
[339996096,1728295859511,-636.06,0.00038082,120]
[339996097,1728295859520,-889.03,0.00038082,120]
[339996098,1728295859530,-500.0,0.00038082,120]
[339996099,1728295859540,-600.6,0.00038082,120]
[339996100,1728295859549,-500.0,0.00038082,120]
[339996101,1728295859558,-810.09,0.00038082,120]
[339996102,1728295859568,-1346.29,0.00038082,120]
[339996103,1728295859577,-654.7,0.00038082,120]
[339996104,1728295859587,-500.0,0.00038082,120]
[339996105,1728295859599,-558.01,0.00038082,120]
[339996106,1728295859609,-556.24,0.00038082,120]
[339996107,1728295859618,-500.0,0.00038082,120]
[339996108,1728295859628,-568.77,0.00038082,120]
[339996109,1728295859638,-605.87,0.00038082,120]
[339996110,1728295859647,-954.06,0.00038082,7]
[339996111,1728295859657,-169.29,0.00038102,2]
[339996112,1728295859666,-933.72,0.00038137,2]
[339996113,1728295859675,-423.3,0.00038137,2]
[339996114,1728295859685,-150.0,0.00038202,7]
[339996115,1728295859695,-150.0,0.00038202,7]
[339996116,1728295859704,-172.84,0.0003829,2]
[339996117,1728295859713,-4042.41,0.000383,14]
[339996118,1728295859723,-500.0,0.00038356,120]
[339996119,1728295859732,-500.0,0.00038356,120]
[339996120,1728295859742,-500.0,0.00038356,30]
[339996121,1728295859751,-500.0,0.00038356,30]
[339996122,1728295859761,-500.0,0.00038356,30]
[339996123,1728295859771,-500.0,0.00038356,30]
[339996124,1728295859781,-500.0,0.00038356,30]
[339996125,1728295859790,-500.0,0.00038356,30]
[339996126,1728295859800,-500.0,0.00038356,30]
[339996127,1728295859809,-500.0,0.00038356,30]
[339996128,1728295859819,-500.0,0.00038356,30]
[339996129,1728295859828,-500.0,0.00038356,30]
[339996130,1728295859838,-500.0,0.00038356,30]
[339996131,1728295859849,-500.0,0.00038356,120]
[339996132,1728295859859,-879.25,0.00038356,120]
[339996133,1728295859869,-832.07,0.00038356,120]
[339996134,1728295859879,-500.0,0.00038356,120]
[339996135,1728295859888,-767.12,0.00038356,120]
[339996136,1728295859898,-1284.48,0.00038356,14]
[339996137,1728295859908,-500.0,0.00038356,120]
[339996138,1728295859918,-595.67,0.00038356,120]
[339996139,1728295859927,-500.0,0.00038356,120]
[339996140,1728295859937,-1116.95,0.00038356,120]
[339996141,1728295859947,-263.3,0.00038356,120]
[339996142,1728295859956,-764.7,0.00038356,120]
[339996143,1728295859966,-775.76,0.00038356,30]
[339996144,1728295859975,-2242.98,0.00038356,120]
[339996145,1728295859985,-370.19,0.00038356,120]
[339996146,1728295860061,-374.15,0.00038356,120]
[339996147,1728295860078,-578.66,0.00038356,120]
[339996148,1728295860088,-317.38,0.00038356,120]
[339996149,1728295860106,-269.12,0.00038356,120]
[339996150,1728295860115,-560.68,0.00038356,120]
[339996151,1728295860124,-495.32,0.00038356,120]
[339996152,1728295860135,-500.0,0.00038356,120]
[339996153,1728295860145,-500.0,0.00038356,2]
[339996154,1728295860155,-500.0,0.00038356,2]
[339996155,1728295860165,-500.0,0.00038356,2]
[339996156,1728295860175,-500.0,0.00038356,2]
[339996157,1728295860187,-500.0,0.00038356,2]
[339996158,1728295860197,-500.0,0.00038356,2]
[339996159,1728295860207,-500.0,0.00038356,2]
[339996160,1728295860217,-500.0,0.00038356,2]
[339996161,1728295860227,-500.0,0.00038356,2]
[339996162,1728295860237,-500.0,0.00038356,120]
[339996163,1728295860247,-508.5551765,0.00038356,120]
[339996164,1728295860257,-850.87,0.00038356,120]
[339996165,1728295860267,-560.68,0.00038356,120]
[339996166,1728295860277,-500.0,0.00038356,120]
[339996167,1728295860287,-331.94,0.00038356,120]
[339996168,1728295860297,-500.0,0.00038356,120]
[339996169,1728295860308,-301.64,0.00038356,120]
[339996170,1728295860318,-500.0,0.00038356,120]
[339996171,1728295860328,-500.0,0.00038356,120]
[339996172,1728295860338,-500.0,0.00038356,120]
[339996173,1728295860351,-182.39,0.00038356,120]
[339996174,1728295860361,-589.58,0.00038356,120]
[339996175,1728295860370,-660.06,0.00038356,120]
[339996176,1728295860381,-413.18,0.00038356,120]
[339996177,1728295860391,-500.0,0.00038356,120]
[339996178,1728295860400,-504.02,0.00038356,120]
[339996179,1728295860410,-500.0,0.00038356,120]
[339996180,1728295860421,-587.38,0.00038356,120]
[339996181,1728295860431,-500.0,0.00038356,120]
[339996182,1728295860441,-711.71,0.00038356,120]
[339996183,1728295860451,-646.3,0.00038356,120]
[339996184,1728295860461,-500.0,0.00038356,21]
[339996185,1728295860471,-511.23,0.00038356,120]
[339996186,1728295860480,-294.98,0.00038356,120]
[339996187,1728295860490,-500.0,0.00038356,120]
[339996188,1728295860499,-619.93,0.00038356,120]
[339996189,1728295860508,-500.0,0.00038356,120]
[339996190,1728295860518,-530.54,0.00038356,120]
[339996191,1728295860527,-475.22,0.00038356,120]
[339996192,1728295860536,-150.44,0.00038356,120]
[339996193,1728295860546,-669.98,0.00038356,120]
[339996194,1728295860555,-618.29,0.00038356,120]
[339996195,1728295860565,-526.83,0.00038356,120]
[339996196,1728295860574,-560.05,0.00038356,120]
[339996197,1728295860584,-1500.0,0.00038356,120]
[339996198,1728295860595,-1500.0,0.00038356,120]
[339996199,1728295860605,-1500.0,0.00038356,120]
[339996200,1728295860615,-1500.0,0.00038356,120]
[339996201,1728295860624,-1500.0,0.00038356,120]
[339996202,1728295860634,-500.0,0.00038356,120]
[339996203,1728295860644,-1500.0,0.00038356,120]
[339996204,1728295860653,-1500.0,0.00038356,120]
[339996205,1728295860663,-729.19051079,0.00038356,120]
[339996206,1728295860672,-530.63,0.00038356,120]
[339996207,1728295860682,-736.68,0.00038356,120]
[339996208,1728295860692,-524.29,0.00038356,120]
[339996209,1728295860702,-500.0,0.00038356,120]
[339996210,1728295860712,-500.0,0.00038356,120]
[339996211,1728295860722,-383.24387796,0.00038356,120]
[339996212,1728295860732,-636.06,0.00038356,120]
[339996213,1728295860741,-889.03,0.00038356,120]
[339996214,1728295860751,-500.0,0.00038356,120]
[339996215,1728295860761,-600.6,0.00038356,120]
[339996216,1728295860771,-500.0,0.00038356,120]
[339996217,1728295860781,-810.09,0.00038356,120]